bitfinex/quotes_ETHUSD_20250903
["timestamp","ask_amount","ask_price","bid_price","bid_amount"]
[1756899503467,0.3117,4389.0,4388.9,2.39207524]
[1756899505411,1.2204,4389.0,4388.9,2.39207524]
[1756899505695,0.7921,4389.0,4388.9,2.39207524]
[1756899505898,1.2204,4389.0,4388.9,2.39207524]
[1756899506102,1.34244,4389.0,4388.6,2.28262967]
[1756899506253,0.43374,4389.0,4388.8,2.27850842]
[1756899506453,0.9087,4388.9,4388.8,2.27850842]
[1756899506654,1.2204,4388.9,4388.8,2.27850842]
[1756899506962,0.7921,4388.9,4388.8,2.27850842]
[1756899507473,0.7921,4388.9,4388.7,0.1136]
[1756899507474,0.4804,4389.4,4389.2,2.2783047]
[1756899507649,0.3117,4389.3,4389.2,2.2783047]
[1756899508251,0.00100001,4389.8,4389.7,2.27806]
[1756899508451,0.00020001,4389.8,4389.7,2.39166]
[1756899508681,0.00020001,4389.8,4389.7,2.68836]
[1756899509985,0.76060001,4389.8,4389.7,2.39166]
[1756899510951,0.28740001,4389.8,4389.7,2.39166]
[1756899512179,0.00020001,4389.8,4389.7,2.69976]
[1756899512716,0.00020001,4389.8,4389.7,3.15376]
[1756899513095,0.00020001,4389.8,4389.7,2.69976]
[1756899514486,0.00020001,4389.8,4389.7,3.15376]
[1756899515071,0.00020001,4389.8,4389.7,2.69976]
[1756899515305,0.00020001,4389.8,4389.7,2.39166]
[1756899515791,0.00020001,4389.8,4389.7,2.69976]
[1756899516575,0.00020001,4389.8,4389.7,2.39166]
[1756899517177,0.00020001,4389.8,4389.7,2.69976]
[1756899518303,0.28740001,4389.8,4389.7,2.39166]
[1756899518716,0.76060001,4389.8,4389.7,2.39166]
[1756899518884,0.76060001,4389.8,4389.7,0.1136]
[1756899518885,1.21590001,4389.8,4389.7,0.1136]
[1756899519206,1.33749001,4389.8,4389.7,0.1136]
[1756899520021,0.76060001,4389.8,4389.7,2.39166]
[1756899520997,1.21590001,4389.8,4389.7,0.1136]
[1756899521308,1.21590001,4389.8,4389.6,0.004]
[1756899521506,0.00020001,4389.8,4389.7,2.69976]
[1756899521678,0.00020001,4389.8,4389.7,3.9457341]
[1756899522384,0.00020001,4389.8,4389.7,9.18499569]
[1756899522581,0.00020001,4389.8,4389.7,9.95421509]
[1756899524085,0.00020001,4389.8,4389.7,12.95421509]
[1756899527249,0.00020001,4389.8,4389.7,8.1922341]
[1756899527418,0.00020001,4389.8,4389.7,12.95421509]
[1756899527613,0.00020001,4389.8,4389.7,14.63121505]
[1756899532945,3.0,4391.8,4391.2,2.27728183]
[1756899533147,0.2872,4391.3,4391.2,2.27728183]
[1756899533509,2.27655987,4392.6,4391.2,0.1136]
[1756899533725,2.96105485,4392.6,4391.7,2.27698773]
[1756899533923,0.2872,4391.8,4391.7,2.27698773]
[1756899534256,2.38959778,4393.7,4392.5,0.1136]
[1756899534455,2.38959778,4393.7,4392.3,2.27669668]
[1756899534456,0.2872,4392.6,4392.3,2.27669668]
[1756899534657,0.2872,4392.6,4391.4,2.27717812]
[1756899534829,0.2872,4392.6,4392.5,0.1136]
[1756899535350,0.7847,4392.6,4392.5,0.1136]
[1756899536055,0.7604,4392.6,4392.5,0.1136]
[1756899536551,0.68436667,4393.0,4392.5,0.1136]
[1756899536754,2.74919421,4393.7,4392.5,0.1136]
[1756899536755,0.099,4392.6,4392.5,0.1136]
[1756899536954,0.099,4392.6,4392.4,2.27663892]
[1756899537125,0.099,4392.6,4392.5,0.1136]
[1756899537449,0.5722,4392.6,4392.5,0.1136]
[1756899537834,0.7828,4392.6,4392.5,0.1136]
[1756899538233,3.05935602,4392.6,4392.5,0.1136]
[1756899538419,1.5649337,4392.6,4392.3,0.1136]
[1756899538624,2.27667396,4392.4,4392.1,0.1136]
[1756899538856,0.6838,4392.5,4392.1,0.1136]
[1756899539056,0.1001,4392.2,4392.1,0.1136]
[1756899539557,0.5733,4392.2,4392.1,0.1136]
[1756899539722,0.5733,4392.2,4391.2,2.27723759]
[1756899539723,3.3446072,4392.2,4391.2,2.27723759]
[1756899539927,3.3446072,4392.2,4390.8,0.4782]
[1756899539928,3.34460373,4392.2,4391.8,0.1136]
[1756899540128,0.6914,4392.1,4391.8,0.1136]
[1756899540352,2.27689236,4392.0,4391.8,0.1136]
[1756899540546,0.2936,4391.9,4391.8,0.1136]
[1756899540759,1.83291388,4391.9,4391.8,0.1136]
[1756899541057,1.33301388,4391.9,4391.8,0.1136]
[1756899541261,0.7755,4391.9,4391.8,0.1136]
[1756899541956,0.7935,4391.9,4391.8,0.1136]
[1756899542457,0.7935,4391.9,4390.8,0.025]
[1756899542458,7.83239986,4391.9,4390.8,0.025]
[1756899542659,2.27706834,4391.7,4391.3,0.1136]
[1756899542828,0.018,4391.8,4391.3,0.1136]
[1756899542829,0.79461493,4391.6,4391.3,0.1136]
[1756899543029,0.2908,4391.4,4391.3,0.1136]
[1756899544732,0.28500127,4392.2,4391.3,0.8618]
[1756899544966,0.68454781,4392.0,4391.7,0.1136]
[1756899545163,0.1136,4392.7,4392.1,0.1136]
[1756899545460,0.099,4392.2,4391.9,0.1136]
[1756899545657,0.099,4392.2,4391.9,2.39050307]
[1756899546164,0.099,4392.2,4391.9,0.1136]
[1756899546532,0.3060186,4392.1,4391.9,0.1136]
[1756899546737,0.1001,4392.0,4391.9,0.1136]
[1756899547554,0.582,4392.0,4391.9,0.1136]
[1756899548648,2.27697071,4391.8,4390.9,3.95443734]
[1756899548855,2.27697071,4391.8,4391.2,0.1136]
[1756899548856,0.1136,4391.8,4391.2,0.1136]
[1756899549051,0.1012,4391.3,4391.2,0.1136]
[1756899551342,0.5831,4391.3,4391.2,0.1136]
[1756899551668,0.5831,4391.3,4390.8,0.025]
[1756899551669,2.27733369,4391.1,4390.8,0.025]
[1756899551847,2.27738556,4391.0,4390.8,0.025]
[1756899552167,0.2936,4390.9,4390.8,0.025]
[1756899552387,1.37687727,4390.9,4390.8,0.025]
[1756899552737,0.2936,4390.9,4390.8,0.025]
[1756899552937,0.2936,4390.9,4390.8,0.029]
[1756899554472,2.96212402,4391.0,4390.9,2.27743742]
[1756899554473,0.68472906,4391.0,4390.9,2.27743742]
[1756899554638,0.68472906,4391.0,4390.9,3.02563742]
[1756899554834,0.68472906,4391.0,4390.9,4.05015422]
[1756899555046,2.27762462,4390.6,4387.4,0.4913]
[1756899555254,2.27762462,4390.6,4386.3,0.11912405]
[1756899555255,3.0,4388.9,4387.2,0.4953]
[1756899555592,2.98789893,4390.5,4388.8,0.4822]
[1756899555593,3.0,4390.4,4388.8,0.4822]
[1756899555751,2.27769679,4390.4,4388.8,6.59190418]
[1756899556078,0.68491118,4390.3,4388.9,0.9445]
[1756899556249,2.27802255,4389.8,4388.8,0.029]
[1756899556452,2.27806024,4389.7,4388.8,0.029]
[1756899557175,0.45559784,4389.7,4388.8,0.029]
[1756899557474,2.2780081,4389.8,4388.8,0.029]
[1756899558069,2.27806119,4389.7,4388.8,0.029]
[1756899558256,2.27811259,4389.6,4388.8,0.029]
[1756899558875,3.0,4390.0,4388.8,0.029]
[1756899558876,2.27807073,4389.7,4388.8,0.029]
[1756899559081,2.27811726,4389.6,4388.8,0.029]
[1756899559381,0.2936,4388.9,4388.8,0.029]
[1756899559590,2.27800081,4389.9,4388.8,0.029]
[1756899559770,0.4819,4390.1,4388.8,0.7772]
[1756899560193,2.27812092,4389.6,4388.8,0.7772]
[1756899560581,2.75996,4389.7,4388.8,0.029]
[1756899560879,0.099,4388.9,4388.8,0.029]
[1756899561388,2.27816552,4389.5,4388.8,0.029]
[1756899561548,0.4819,4389.7,4388.8,0.029]
[1756899561549,0.4532,4389.0,4388.8,0.029]
[1756899563289,0.099,4388.9,4388.8,0.029]
[1756899564985,0.4532,4389.0,4388.8,0.029]
[1756899565353,0.1001,4388.9,4388.8,0.029]
[1756899566477,0.4532,4389.0,4388.8,0.029]
[1756899567570,0.1011,4388.9,4388.8,0.029]
[1756899569170,2.86147524,4388.9,4388.8,0.029]
[1756899569371,3.14474807,4388.9,4388.8,0.029]
[1756899570604,13.07175225,4388.9,4388.8,0.029]
[1756899572986,12.86505225,4388.9,4388.8,0.029]
[1756899573189,13.07175225,4388.9,4388.8,0.029]
[1756899576692,6.07057907,4388.7,4388.6,0.004]
[1756899576905,7.9509322,4388.7,4388.6,0.004]
[1756899577106,8.7298322,4388.7,4388.6,0.004]
[1756899580147,8.7298322,4388.7,4388.3,0.004]
[1756899580148,0.792,4388.4,4388.3,0.004]
[1756899580336,11.88543902,4388.4,4388.3,0.004]
[1756899580518,12.10223902,4388.4,4388.3,0.004]
[1756899580715,12.83502037,4388.4,4388.3,0.004]
[1756899581540,13.51072037,4388.4,4388.3,0.004]
[1756899581944,13.50992037,4388.4,4388.3,0.004]
[1756899582745,13.30532037,4388.4,4388.3,0.004]
[1756899584527,12.83422037,4388.4,4388.3,0.004]
[1756899584961,6.91711619,4388.4,4388.3,0.3069]
[1756899585143,6.91711619,4388.4,4388.3,0.7496]
[1756899585347,6.18433484,4388.4,4388.3,0.7496]
[1756899587472,6.18433484,4388.4,4388.3,0.3069]
[1756899588331,3.1136,4388.4,4388.3,0.7496]
[1756899588535,0.1136,4388.4,4388.3,1.2285]
[1756899589264,2.39233484,4388.4,4388.3,1.2285]
[1756899590136,0.1136,4388.4,4388.3,1.2285]
[1756899590473,3.0,4389.0,4388.3,1.2285]
[1756899590474,0.1136,4389.3,4388.3,1.35175]
[1756899590665,2.2783859,4389.1,4388.6,0.1136]
[1756899590861,5.2783859,4389.1,4389.0,0.3029]
[1756899591066,5.2783859,4389.1,4389.0,1.2245]
[1756899591778,2.27854326,4388.8,4388.6,0.4427]
[1756899591940,2.27854326,4388.8,4388.7,0.7456]
[1756899592671,0.1146,4388.9,4388.3,0.5603]
[1756899592837,2.27852716,4388.8,4388.3,0.004]
[1756899593041,0.001,4388.9,4388.8,0.3029]
[1756899593270,0.001,4388.9,4388.8,0.7456]
[1756899593463,2.39307524,4388.9,4388.8,0.7456]
[1756899593975,2.27868292,4388.5,4388.4,0.4427]
[1756899594142,0.1136,4388.6,4388.4,0.7456]
[1756899594349,0.001,4388.9,4388.5,0.9216]
[1756899594645,3.79870279,4388.8,4388.5,0.9216]
[1756899594841,0.1136,4388.8,4388.7,0.3029]
[1756899595049,0.001,4388.9,4388.7,1.2245]
[1756899595248,0.001,4388.9,4388.8,0.4789]
[1756899595443,0.001,4388.9,4388.8,0.9216]
[1756899595642,0.001,4388.9,4388.8,1.2245]
[1756899595874,5.27948508,4388.9,4388.8,0.3029]
[1756899596073,6.45740724,4388.9,4388.8,0.7456]
[1756899596445,6.57100724,4388.9,4388.8,0.3029]
[1756899596788,6.57100724,4388.9,4388.8,0.7456]
[1756899596789,5.39308508,4388.9,4388.8,0.7456]
[1756899597272,5.39308508,4388.9,4388.8,0.3029]
[1756899597492,3.1146,4388.9,4388.8,1.2245]
[1756899597705,0.001,4388.9,4388.8,1.2245]
[1756899601111,0.001,4388.9,4388.8,3.61662716]
[1756899601397,0.001,4388.9,4388.8,4.20614964]
[1756899601900,0.001,4388.9,4388.8,1.92762248]
[1756899602099,0.001,4388.9,4388.8,1.3381]
[1756899602299,0.001,4388.9,4388.8,3.61662716]
[1756899602598,0.001,4388.9,4388.8,1.3381]
[1756899603713,0.001,4388.9,4388.8,3.61662716]
[1756899604200,0.001,4388.9,4388.8,1.3381]
[1756899604798,0.001,4388.9,4388.8,3.61662716]
[1756899604969,0.001,4388.9,4388.8,1.3381]
[1756899605611,0.001,4388.9,4388.8,0.3029]
[1756899605771,0.001,4388.9,4388.8,0.7771]
[1756899606200,0.001,4388.9,4388.8,0.3029]
[1756899606401,2.27867524,4388.9,4388.8,0.7771]
[1756899606603,2.27867524,4388.9,4388.3,0.004]
[1756899606604,0.82185299,4388.9,4388.3,0.004]
[1756899606767,0.1136,4388.6,4388.3,0.004]
[1756899607082,5.27873484,4388.4,4388.3,0.004]
[1756899607277,5.58553484,4388.4,4388.3,0.0784]
[1756899607481,6.89732662,4388.4,4388.3,0.0784]
[1756899608102,13.5040308,4388.4,4388.3,0.0784]
[1756899608315,13.5071308,4388.4,4388.3,0.0784]
[1756899615577,12.46161423,4388.4,4388.3,0.0784]
[1756899618210,6.07078677,4388.3,4388.2,0.004]
[1756899618412,8.52512428,4388.3,4388.2,0.004]
[1756899618724,8.83502428,4388.3,4388.2,0.004]
[1756899618915,10.84013018,4388.0,4387.9,1e-08]
[1756899619089,10.95373018,4388.0,4387.9,1e-08]
[1756899619434,11.85249299,4388.0,4387.9,1e-08]
[1756899619585,11.94388156,4388.0,4387.9,1e-08]
[1756899620408,6.87089395,4388.0,4387.9,0.30340001]
[1756899620618,6.87089395,4388.0,4387.9,0.77760001]
[1756899620920,5.37033114,4388.0,4387.9,1.25720001]
[1756899621219,2.48393114,4388.0,4387.9,1.25720001]
[1756899622021,2.48393114,4388.0,4387.9,0.77760001]
[1756899622220,6.27593114,4388.0,4387.9,1e-08]
[1756899622426,8.00732934,4388.0,4387.9,1e-08]
[1756899623122,7.90832934,4388.0,4387.9,1e-08]
[1756899623295,8.21512934,4388.0,4387.9,1e-08]
[1756899623497,7.90832934,4388.0,4387.9,1e-08]
[1756899624732,8.21212934,4388.0,4387.9,1e-08]
[1756899626136,7.90832934,4388.0,4387.9,1e-08]
[1756899626626,8.47432934,4388.0,4387.9,1e-08]
[1756899627525,8.00732934,4388.0,4387.9,1e-08]
[1756899629900,8.47172934,4388.0,4387.9,1e-08]
[1756899630605,8.00732934,4388.0,4387.9,1e-08]
[1756899630904,8.00732934,4388.0,4387.4,0.004]
[1756899630905,6.07040227,4387.5,4387.4,1e-08]
[1756899631209,6.07040227,4387.5,4387.2,0.004]
[1756899631210,6.07141008,4387.1,4387.0,1e-08]
[1756899631399,10.95419769,4387.1,4387.0,1e-08]
[1756899631603,11.05429769,4387.1,4387.0,1e-08]
[1756899632004,11.48389769,4387.1,4387.0,1e-08]
[1756899632230,11.81500656,4387.1,4387.0,1e-08]
[1756899632441,11.91610656,4387.1,4387.0,1e-08]
[1756899632644,11.81500656,4387.1,4387.0,1e-08]
[1756899632849,11.91610656,4387.1,4387.0,1e-08]
[1756899635743,11.91610656,4387.1,4385.1,0.1184]
[1756899635744,3.07203374,4385.9,4385.7,0.9301]
[1756899636044,10.95562135,4385.9,4385.7,0.9301]
[1756899636349,10.95562135,4385.9,4385.8,1.2515]
[1756899636720,5.39443374,4385.9,4385.8,1.2515]
[1756899637112,6.18643374,4385.9,4385.8,1.2515]
[1756899637316,7.67755801,4385.9,4385.8,0.025]
[1756899637732,7.57855801,4385.9,4385.8,0.025]
[1756899639211,7.67865801,4385.9,4385.8,0.025]
[1756899640864,7.57855801,4385.9,4385.8,0.025]
[1756899641168,7.57855801,4385.9,4385.8,0.761]
[1756899641363,7.57855801,4385.9,4385.8,1.2515]
[1756899641522,2.39443374,4385.9,4385.8,1.2515]
[1756899641922,3.18643374,4385.9,4385.8,1.2515]
[1756899642791,2.39443374,4385.9,4385.8,1.2515]
[1756899643478,5.39443374,4385.9,4385.8,1.2515]
[1756899645788,5.39443374,4385.9,4385.8,1.2555]
[1756899647264,6.18643374,4385.9,4385.8,0.765]
[1756899647598,7.57855471,4385.9,4385.8,1.2555]
[1756899647805,6.18643374,4385.9,4385.8,0.765]
[1756899648701,6.18643374,4385.9,4385.8,0.3354]
[1756899648909,6.18643374,4385.9,4385.8,0.765]
[1756899649068,6.28543374,4385.9,4385.8,0.029]
[1756899649396,8.8233932,4385.9,4385.8,0.029]
[1756899649998,9.16709064,4385.9,4385.8,0.029]
[1756899650201,8.46822869,4385.9,4385.8,0.029]
[1756899652979,8.00382869,4385.9,4385.8,0.029]
[1756899653571,8.46822869,4385.9,4385.8,0.029]
[1756899654005,12.6740163,4385.9,4385.8,0.029]
[1756899654183,12.7730163,4385.9,4385.8,0.029]
[1756899654512,13.2374163,4385.9,4385.8,0.029]
[1756899655377,13.2366163,4385.9,4385.8,0.029]
[1756899655586,12.7722163,4385.9,4385.8,0.029]
[1756899658686,12.6732163,4385.9,4385.8,0.029]
[1756899660186,7.90402869,4385.9,4385.8,0.3369]
[1756899660417,2.39363374,4385.9,4385.8,1.2778]
[1756899660619,0.1144,4385.9,4385.8,1.2778]
[1756899660799,2.39443374,4385.9,4385.8,1.2778]
[1756899661122,0.1144,4385.9,4385.8,1.2778]
[1756899661821,0.1136,4386.3,4385.8,1.2778]
[1756899662120,0.68550668,4386.5,4385.9,0.9409]
[1756899662428,0.1136,4386.5,4386.4,0.3079]
[1756899662633,0.1136,4386.5,4386.4,1.2488]
[1756899662826,0.1136,4386.5,4386.4,3.52857384]
[1756899663129,2.27946277,4387.0,4386.4,2.30656391]
[1756899663308,0.68636416,4387.1,4386.5,0.9409]
[1756899663309,3.79996416,4387.1,4386.5,0.9409]
[1756899663509,6.0793851,4387.1,4387.0,0.3079]
[1756899663709,6.0793851,4387.1,4387.0,1.2488]
[1756899664014,3.79996416,4387.1,4387.0,1.2488]
[1756899664218,0.79996416,4387.1,4387.0,1.2488]
[1756899665899,0.68636416,4387.1,4387.0,1.2488]
[1756899666295,0.68636416,4387.1,4387.0,1.72660031]
[1756899666499,0.001,4387.1,4387.0,4.00606235]
[1756899672637,0.001,4387.1,4387.0,16.87705494]
[1756899672839,0.001,4387.1,4387.0,19.87705494]
[1756899673810,0.001,4387.1,4387.0,20.66905494]
[1756899674725,0.001,4387.5,4387.4,2.27925422]
[1756899674912,0.001,4387.5,4387.4,6.33511233]
[1756899675112,0.001,4387.5,4387.4,6.64301233]
[1756899675415,0.001,4387.5,4387.4,7.69751233]
[1756899675844,0.001,4387.5,4387.4,8.37591233]
[1756899676150,0.001,4387.5,4387.4,8.48951233]
[1756899679140,0.001,4387.5,4387.4,7.69751233]
[1756899679343,0.001,4387.5,4387.4,1.3624]
[1756899679548,0.001,4387.5,4387.4,0.1136]
[1756899679747,0.1,4387.5,4387.4,0.1136]
[1756899679947,0.0002,4387.5,4387.4,0.4215]
[1756899680137,0.0002,4387.5,4387.4,3.64165422]
[1756899680344,0.2983,4387.5,4387.4,0.1136]
[1756899680631,0.0002,4387.5,4387.4,3.64165422]
[1756899682362,0.0002,4387.5,4387.4,2.70075422]
[1756899682560,0.0002,4387.5,4387.4,2.39285422]
[1756899683059,0.0992,4387.5,4387.4,0.1136]
[1756899683423,0.5496,4387.5,4387.4,0.1136]
[1756899683638,2.82880903,4387.5,4386.7,2.27960908]
[1756899683860,1.09320339,4387.5,4387.0,0.1136]
[1756899684061,3.37241769,4387.5,4387.0,0.1136]
[1756899684425,1.09320339,4387.5,4387.0,0.1136]
[1756899684773,0.5496,4387.5,4387.0,0.1136]
[1756899685429,2.82880582,4387.5,4387.0,0.1136]
[1756899685626,0.6592,4387.4,4387.0,0.1136]
[1756899685839,2.27938628,4387.2,4386.5,2.27970315]
[1756899686063,2.27938628,4387.2,4386.6,0.1136]
[1756899687042,0.1001,4386.7,4386.6,0.1136]
[1756899687772,0.68536259,4386.8,4386.6,0.1136]
[1756899688867,0.68536259,4386.8,4386.6,2.39325308]
[1756899689063,0.099,4386.7,4386.6,0.1136]
[1756899689470,0.68536259,4386.8,4386.7,2.27961793]
[1756899689671,0.0002,4387.5,4387.2,2.2793184]
[1756899689865,0.0002,4387.5,4386.7,0.89181223]
[1756899690058,0.0002,4387.5,4386.8,0.95]
[1756899690254,0.0002,4387.5,4387.3,2.2792793]
[1756899690450,0.0002,4387.5,4387.4,2.27925422]
[1756899690851,0.0002,4387.5,4387.4,2.59025422]
[1756899691087,0.0002,4387.5,4387.4,3.54025422]
[1756899691281,0.0002,4387.5,4387.4,4.12221425]
[1756899695782,0.0002,4387.5,4387.4,3.63951425]
[1756899696284,0.0002,4387.5,4387.4,2.86121425]
[1756899696481,0.0002,4387.5,4387.4,3.17221425]
[1756899696674,0.0002,4387.5,4387.4,3.63951425]
[1756899697485,0.0002,4387.5,4387.4,4.12221425]
[1756899699671,0.0002,4387.5,4387.4,4.23581425]
[1756899700095,0.0002,4387.5,4387.4,2.97481425]
[1756899700264,0.0002,4387.5,4387.4,2.39285422]
[1756899700788,0.0002,4387.5,4387.4,2.70385422]
[1756899700992,0.0002,4387.5,4387.4,3.17115422]
[1756899702672,0.0002,4387.5,4387.4,3.65385422]
[1756899704593,0.0004,4387.6,4387.5,2.27920227]
[1756899705191,0.0004,4387.6,4387.5,2.59020227]
[1756899705381,0.0004,4387.6,4387.5,4.26644104]
[1756899705996,0.0004,4387.6,4387.5,4.38004104]
[1756899706307,0.0004,4387.6,4387.5,7.38004104]
[1756899711017,0.0004,4387.6,4387.5,8.17204104]
[1756899714119,0.0004,4387.6,4387.5,8.17604104]
[1756899716989,0.0004,4387.6,4387.5,9.853041]
[1756899721032,0.025,4387.8,4387.7,6.07109838]
[1756899721033,1e-08,4387.8,4387.7,6.07109838]
[1756899721231,1e-08,4387.8,4387.7,7.51223774]
[1756899721436,1e-08,4387.8,4387.7,7.80573774]
[1756899721605,1e-08,4387.8,4387.7,8.71273774]
[1756899724939,0.001,4388.1,4387.7,8.71273774]
[1756899724940,1e-08,4388.1,4388.0,6.07094257]
[1756899725116,0.025,4388.8,4388.4,6.07073484]
[1756899725320,1e-08,4388.8,4388.4,8.0412348]
[1756899725544,1e-08,4388.8,4388.7,16.06972162]
[1756899725842,1e-08,4388.8,4388.7,16.18332162]
[1756899726043,1e-08,4388.8,4388.7,16.92942162]
[1756899726222,1e-08,4388.8,4388.7,19.15206745]
[1756899726541,1e-08,4388.8,4388.7,19.26421681]
[1756899726846,1e-08,4388.8,4388.7,20.94121677]
[1756899728821,0.00040001,4389.3,4389.2,3.07031951]
[1756899729024,0.00040001,4389.3,4389.2,6.07031951]
[1756899729244,0.00040001,4389.3,4389.2,7.99705828]
[1756899729543,0.4842,4391.0,4390.7,2.27754116]
[1756899729909,0.6082,4390.8,4390.7,2.27754116]
[1756899730111,0.817,4390.8,4390.0,5.81104737]
[1756899730336,0.693,4390.7,4390.2,2.27779809]
[1756899730544,0.5033,4390.6,4390.5,2.27763132]
[1756899730755,0.7912,4390.6,4390.5,2.27763132]
[1756899731139,0.7912,4390.6,4390.4,5.81104737]
[1756899731344,0.506,4390.5,4390.4,8.08874416]
[1756899731540,0.7913,4390.5,4390.4,8.08874416]
[1756899732854,0.7913,4390.5,4390.4,5.81104737]
[1756899733058,0.7913,4390.5,4390.4,8.08874416]
[1756899733432,0.7913,4390.5,4390.4,2.27769679]
[1756899733657,0.7695,4390.5,4390.4,2.27769679]
[1756899733826,0.025,4390.8,4390.7,2.27754116]
[1756899734360,0.124,4390.8,4390.7,2.27754116]
[1756899737042,0.025,4390.8,4390.7,13.46818079]
[1756899737431,0.025,4390.8,4390.7,16.32101103]
[1756899737631,0.025,4390.8,4390.7,18.39413148]
[1756899738945,0.025,4390.8,4390.7,20.86313144]
[1756899739162,0.025,4390.8,4390.7,19.29973148]
[1756899739362,1e-08,4390.8,4390.7,19.29973148]
[1756899739962,1e-08,4390.8,4390.7,20.97673144]
[1756899741234,1e-08,4390.8,4390.7,19.29973148]
[1756899741558,1e-08,4390.8,4390.7,20.97673144]
[1756899742060,1e-08,4390.8,4390.7,19.29973148]
[1756899742263,1e-08,4390.8,4390.7,20.97673144]
[1756899742561,1e-08,4390.8,4390.7,18.84533148]
[1756899743159,1e-08,4390.8,4390.7,20.52233144]
[1756899743741,1e-08,4390.8,4390.7,20.97673144]
[1756899745878,0.4842,4392.3,4391.0,0.792]
[1756899746042,0.4842,4392.8,4392.7,2.27649365]
[1756899746247,0.794,4392.8,4392.7,2.27649365]
[1756899746545,0.794,4392.8,4392.7,2.39009365]
[1756899748072,0.7749,4392.8,4392.7,2.39009365]
[1756899748681,0.7749,4392.8,4392.7,0.1136]
[1756899749051,0.794,4392.8,4392.7,0.1136]
[1756899750393,0.7749,4392.8,4392.7,0.1136]
[1756899750559,0.794,4392.8,4392.7,0.1136]
[1756899751769,0.795,4392.8,4392.7,0.1136]
[1756899753366,0.7942,4392.8,4392.7,0.1136]
[1756899756472,0.7751,4392.8,4392.7,0.1136]
[1756899756986,0.7942,4392.8,4392.7,0.1136]
[1756899758297,0.7751,4392.8,4392.7,0.1136]
[1756899758596,0.2917,4392.8,4392.7,0.1136]
[1756899758968,0.001,4392.8,4392.7,0.1136]
[1756899759162,0.5721,4392.8,4392.7,0.1136]
[1756899759362,0.7809,4392.8,4392.7,0.1136]
[1756899759998,1.08662593,4392.8,4392.7,0.1136]
[1756899760788,0.5721,4392.8,4392.7,0.1136]
[1756899762496,0.5721,4392.8,4391.8,0.025]
[1756899762497,0.7809,4392.8,4391.8,0.025]
[1756899762691,3.05736418,4392.8,4392.3,0.1136]
[1756899762891,0.4721,4392.7,4392.3,0.1136]
[1756899763096,0.001,4392.8,4392.5,0.1136]
[1756899763300,0.3047,4392.6,4392.5,0.1136]
[1756899763791,0.7768,4392.6,4392.5,0.1136]
[1756899764991,0.3047,4392.6,4392.5,0.1136]
[1756899765996,0.7768,4392.6,4392.5,0.1136]
[1756899766397,0.001,4392.8,4392.5,0.1136]
[1756899768321,0.099,4392.6,4392.5,0.1136]
[1756899768686,0.85595692,4392.6,4391.9,2.27690614]
[1756899768884,0.85595692,4392.6,4392.2,0.1136]
[1756899769522,0.5711,4392.6,4392.3,2.27670792]
[1756899769689,0.5711,4392.6,4392.2,2.39036009]
[1756899769888,0.5711,4392.6,4392.2,0.1136]
[1756899770394,0.5711,4392.6,4392.2,2.39034788]
[1756899770603,0.5711,4392.6,4392.2,0.1136]
[1756899771323,1.0432,4392.6,4392.2,0.1136]
[1756899771503,0.4721,4392.5,4392.2,0.1136]
[1756899771704,0.6809,4392.5,4392.0,0.1136]
[1756899771902,0.4721,4392.4,4392.0,0.1136]
[1756899772219,0.099,4392.1,4392.0,0.1136]
[1756899772913,0.4721,4392.3,4392.0,0.1136]
[1756899773226,0.6844994,4392.2,4392.0,0.1136]
[1756899773719,0.1001,4392.1,4392.0,0.1136]
[1756899773922,0.92553607,4392.1,4392.0,0.1136]
[1756899774223,2.27691887,4391.9,4391.8,0.025]
[1756899774694,2.85021887,4391.9,4391.8,0.025]
[1756899774895,3.05691887,4391.9,4391.8,0.025]
[1756899775303,7.81244862,4391.9,4391.8,0.025]
[1756899775612,4.18099772,4391.9,4391.8,0.025]
[1756899775989,7.18099772,4391.9,4391.8,0.025]
[1756899776523,11.93652747,4391.9,4391.8,0.025]
[1756899776822,12.72852747,4391.9,4391.8,0.025]
[1756899777889,12.72772747,4391.9,4391.8,0.025]
[1756899780013,17.48325722,4391.9,4391.8,0.025]
[1756899780199,12.72772747,4391.9,4391.8,0.025]
[1756899780411,17.48325722,4391.9,4391.8,0.025]
[1756899780724,18.10153583,4391.9,4391.8,1e-08]
[1756899781030,17.78728799,4391.9,4391.8,1e-08]
[1756899781328,6.06897071,4391.8,4391.7,1e-08]
[1756899781623,13.02983063,4391.8,4391.7,1e-08]
[1756899781797,13.83703063,4391.8,4391.7,1e-08]
[1756899781993,18.59256038,4391.8,4391.7,1e-08]
[1756899784446,18.89659115,4391.8,4391.7,1e-08]
[1756899784646,18.59256038,4391.8,4391.7,1e-08]
[1756899784849,18.68388052,4391.8,4391.7,1e-08]
[1756899785718,18.47718052,4391.8,4391.7,1e-08]
[1756899785923,18.68278052,4391.8,4391.7,1e-08]
[1756899787753,13.72165077,4391.8,4391.7,1e-08]
[1756899787925,12.32915077,4391.8,4391.7,0.30830001]
[1756899788316,13.12115077,4391.8,4391.7,0.76640001]
[1756899789017,8.46462102,4391.8,4391.7,1e-08]
[1756899789222,13.22125077,4391.8,4391.7,1e-08]
[1756899789517,18.47508052,4391.8,4391.7,1e-08]
[1756899789924,13.71955077,4391.8,4391.7,1e-08]
[1756899790962,18.47508052,4391.8,4391.7,1e-08]
[1756899791923,13.71955077,4391.8,4391.7,1e-08]
[1756899792366,18.47508052,4391.8,4391.7,1e-08]
[1756899793058,18.77911129,4391.8,4391.7,1e-08]
[1756899793261,18.68278052,4391.8,4391.7,1e-08]
[1756899794056,18.77911129,4391.8,4391.7,1e-08]
[1756899794459,18.98681129,4391.8,4391.7,1e-08]
[1756899796799,0.792,4391.5,4390.8,0.025]
[1756899796962,10.82496717,4390.9,4390.8,0.025]
[1756899797298,10.82496717,4390.9,4389.3,0.004]